fUST/lending_fUST_20250811
["ID","MTS","AMOUNT","RATE_DAILY","PERIOD"]
[378465636,1754875866587,-501.68469329,0.00022665,2]
[378465637,1754875866597,-1500.0,0.00022665,2]
[378465638,1754875866606,-1500.0,0.00022665,2]
[378465639,1754875866615,-652.41906297,0.00022665,2]
[378465640,1754875866625,-1500.0,0.00022665,2]
[378465641,1754875866635,-1500.0,0.00022665,2]
[378465642,1754875866644,-168.0,0.00022753,2]
[378465643,1754875866654,-151.0,0.000228,7]
[378465644,1754875866663,-460.0,0.00022813,2]
[378465645,1754875866672,-460.0,0.00022814,2]
[378465646,1754875866682,-151.0,0.0002282,2]
[378465647,1754875866691,-153.40185163,0.0002282,2]
[378465648,1754875866701,-198.0,0.0002282,2]
[378465649,1754875866709,-151.0,0.0002282,2]
[378465650,1754875866719,-151.0,0.0002282,2]
[378465651,1754875866728,-151.0,0.0002282,2]
[378465652,1754875866738,-245.0,0.0002282,2]
[378465653,1754875866747,-500.0,0.0002282,2]
[378465654,1754875866757,-151.0,0.0002282,2]
[378465655,1754875866766,-197.21108823,0.0002282,2]
[378465656,1754875866776,-151.0,0.0002282,2]
[378465657,1754875866786,-460.0,0.00022822,2]
[378465658,1754875866795,-1509.74,0.00022822,2]
[378465659,1754875866805,-1576.73,0.00022822,2]
[378465660,1754875866814,-2489.12,0.00022822,2]
[378465661,1754875866824,-383.41963936,0.00022822,2]
[378465662,1754875866833,-460.0,0.00022824,2]
[378465663,1754875866843,-514.29,0.00022824,2]
[378465664,1754875866852,-460.0,0.00022824,2]
[378465665,1754875866861,-460.0,0.00022824,2]
[378465666,1754875866871,-460.0,0.00022824,2]
[378465667,1754875866880,-460.0,0.00022824,2]
[378465668,1754875866889,-460.0,0.00022824,2]
[378465669,1754875866899,-460.0,0.00022824,2]
[378465670,1754875866910,-460.0,0.00022824,2]
[378465671,1754875866919,-1431.78,0.00022825,2]
[378465672,1754875866929,-1154.77,0.00022825,2]
[378465673,1754875866939,-460.0,0.00022827,2]
[378465674,1754875866948,-545.53,0.00022827,2]
[378465675,1754875866957,-398.98,0.00022827,2]
[378465676,1754875866966,-1411.99,0.00022827,2]
[378465677,1754875866975,-460.0,0.00022827,2]
[378465678,1754875866984,-992.71,0.00022827,2]
[378465679,1754875866993,-460.0,0.00022828,2]
[378465680,1754875867002,-206.85879942,0.00022828,2]
[378465681,1754875867011,-460.0,0.00022829,2]
[378465682,1754875867021,-460.0,0.00022839,2]
[378465683,1754875867030,-463.29,0.00022839,2]
[378465684,1754875867039,-460.0,0.00022839,2]
[378465685,1754875867049,-653.95,0.00022839,2]
[378465686,1754875867058,-460.0,0.00022839,2]
[378465687,1754875867067,-460.0,0.00022839,2]
[378465688,1754875867077,-460.0,0.00022842,2]
[378465689,1754875867086,-467.83,0.00022842,2]
[378465690,1754875867095,-151.0,0.00022842,7]
[378465691,1754875867104,-3528.01,0.00022843,2]
[378465692,1754875867176,-776.68,0.00022843,2]
[378465693,1754875867186,-460.0,0.00022847,2]
[378465694,1754875867195,-1024.3,0.00022847,2]
[378465695,1754875867205,-1355.29,0.00022847,2]
[378465696,1754875867218,-1443.99,0.00022857,2]
[378465697,1754875867227,-943.31,0.00022857,2]
[378465698,1754875867237,-756.53,0.00022857,2]
[378465699,1754875867246,-261.0,0.00022877,8]
[378465700,1754875867256,-759.0,0.00022922,2]
[378465701,1754875867265,-450.0,0.00022944,2]
[378465702,1754875867275,-600.0,0.00022944,2]
[378465703,1754875867284,-168.0,0.00022952,2]
[378465704,1754875867293,-290.18,0.00022961,2]
[378465705,1754875867302,-3556.80004899,0.0002298,2]
[378465706,1754875867312,-166.065596,0.00023,2]
[378465707,1754875867321,-160.0,0.00023,2]
[378465708,1754875867331,-231.96268195,0.00023,3]
[378465709,1754875867340,-250.0,0.00023,2]
[378465710,1754875867349,-160.0,0.00023,3]
[378465711,1754875867359,-843.0869304,0.00023,3]
[378465712,1754875867368,-160.0,0.00023,3]
[378465713,1754875867381,-160.0,0.00023,3]
[378465714,1754875867390,-160.0,0.00023,3]
[378465715,1754875867399,-193.93783112,0.00023,2]
[378465716,1754875867409,-1359.7280243,0.00023,2]
[378465717,1754875867419,-5041.66872044,0.00023,2]
[378465718,1754875867428,-1340.43618727,0.00023,2]
[378465719,1754875867437,-216.64838636,0.00023,3]
[378465720,1754875867448,-167.0,0.00023014,7]
[378465721,1754875867458,-460.0,0.00023088,2]
[378465722,1754875867467,-198.0,0.00023094,2]
[378465723,1754875867476,-198.0,0.00023094,2]
[378465724,1754875867486,-500.0,0.00023094,2]
[378465725,1754875867495,-151.0,0.00023094,2]
[378465726,1754875867505,-151.0,0.00023094,2]
[378465727,1754875867514,-460.0,0.00023096,2]
[378465728,1754875867523,-1509.74,0.00023096,2]
[378465729,1754875867533,-1576.73,0.00023096,2]
[378465730,1754875867543,-2489.12,0.00023096,2]
[378465731,1754875867552,-361.56006167,0.00023098,2]
[378465732,1754875867562,-514.29,0.00023098,2]
[378465733,1754875867571,-460.0,0.00023098,2]
[378465734,1754875867581,-460.0,0.00023098,2]
[378465735,1754875867590,-460.0,0.00023098,2]
[378465736,1754875867600,-527.72066019,0.00023098,2]
[378465737,1754875867609,-460.0,0.00023098,2]
[378465738,1754875867618,-460.0,0.00023098,2]
[378465739,1754875867628,-460.0,0.00023098,2]
[378465740,1754875867638,-1431.78,0.00023099,2]
[378465741,1754875867648,-1154.77,0.00023099,2]
[378465742,1754875867657,-151.0,0.000231,8]
[378465743,1754875867667,-496.734913,0.000231,10]
[378465744,1754875867676,-11839.40459906,0.000231,5]
[378465745,1754875867695,-480.36,0.00023101,2]
[378465746,1754875867711,-545.53,0.00023101,2]
[378465747,1754875867729,-1411.99,0.00023101,2]
[378465748,1754875867748,-176.2,0.00023101,2]
[378465749,1754875867766,-992.71,0.00023101,2]
[378465750,1754875867782,-460.0,0.00023102,2]
[378465751,1754875867800,-460.0,0.00023103,2]
[378465752,1754875867815,-152.04038189,0.00023104,2]
[378465753,1754875867830,-168.0,0.00023111,2]
[378465754,1754875867847,-3000.0,0.00023112,2]
[378465755,1754875867867,-3062.71469188,0.00023112,2]
[378465756,1754875867879,-2016.50032445,0.00023112,2]
[378465757,1754875867899,-460.0,0.00023113,2]
[378465758,1754875867914,-463.29,0.00023113,2]
[378465759,1754875867930,-460.0,0.00023113,2]
[378465760,1754875867944,-653.95,0.00023113,2]
[378465761,1754875867958,-191.30406378,0.00023113,2]
[378465762,1754875867972,-460.0,0.00023113,2]
[378465763,1754875867987,-460.0,0.00023116,2]
[378465764,1754875868001,-467.83,0.00023116,2]
[378465765,1754875868015,-3528.01,0.00023117,2]
[378465766,1754875868030,-776.68,0.00023117,2]
[378465767,1754875868045,-229.97029158,0.00023118,2]
[378465768,1754875868058,-1000.0,0.00023118,2]
[378465769,1754875868072,-460.0,0.00023121,2]
[378465770,1754875868086,-1024.3,0.00023121,2]
[378465771,1754875868101,-1355.29,0.00023121,2]
[378465772,1754875868116,-1443.99,0.00023131,2]
[378465773,1754875868130,-943.31,0.00023131,2]
[378465774,1754875868146,-756.53,0.00023131,2]
[378465775,1754875868160,-527.50933002,0.00023136,2]
[378465776,1754875868174,-2110.0373201,0.00023136,2]
[378465777,1754875868188,-4742.83638625,0.00023136,2]
[378465778,1754875868202,-400.27924198,0.00023136,2]
[378465779,1754875868215,-1601.11696793,0.00023136,2]
[378465780,1754875868229,-3598.91066466,0.00023136,2]
[378465781,1754875868244,-200.0,0.00023137,15]
[378465782,1754875868258,-200.0,0.00023137,15]
[378465783,1754875868272,-300.0,0.00023137,15]
[378465784,1754875868286,-181.445808,0.00023164,7]
[378465785,1754875868300,-1306.69,0.00023181,2]
[378465786,1754875868315,-600.0,0.00023183,2]
[378465787,1754875868329,-759.0,0.00023205,2]
[378465788,1754875868344,-2000.0,0.00023213,2]
[378465789,1754875868358,-2000.0,0.00023213,2]
[378465790,1754875868375,-2000.0,0.00023213,2]
[378465791,1754875868389,-1462.45925946,0.00023213,2]
[378465792,1754875868403,-2000.0,0.00023213,2]
[378465793,1754875868418,-168.0,0.00023248,2]
[378465794,1754875868432,-500.0,0.00023288,2]
[378465795,1754875868447,-196.495851,0.0002336,7]
[378465796,1754875868550,-196.495851,0.0002336,7]
[378465797,1754875868561,-560.0,0.00023361,2]
[378465798,1754875868571,-460.0,0.00023362,2]
[378465799,1754875868581,-153.66753768,0.00023368,2]
[378465800,1754875868590,-151.0,0.00023368,2]
[378465801,1754875868600,-198.47232211,0.00023368,2]
[378465802,1754875868609,-460.0,0.0002337,2]
[378465803,1754875868618,-1509.74,0.0002337,2]
[378465804,1754875868627,-1576.73,0.0002337,2]
[378465805,1754875868636,-2489.12,0.0002337,2]
[378465806,1754875868645,-514.29,0.00023372,2]
[378465807,1754875868655,-460.0,0.00023372,2]
[378465808,1754875868664,-460.0,0.00023372,2]
[378465809,1754875868673,-460.0,0.00023372,2]
[378465810,1754875868682,-460.0,0.00023372,2]
[378465811,1754875868691,-460.0,0.00023372,2]
[378465812,1754875868700,-460.0,0.00023372,2]
[378465813,1754875868710,-1431.78,0.00023373,2]
[378465814,1754875868719,-1154.77,0.00023373,2]
[378465815,1754875868728,-545.53,0.00023375,2]
[378465816,1754875868741,-1411.99,0.00023375,2]
[378465817,1754875868750,-992.71,0.00023375,2]
[378465818,1754875868759,-460.0,0.00023376,2]
[378465819,1754875868768,-460.0,0.00023377,2]
[378465820,1754875868777,-460.0,0.00023387,2]
[378465821,1754875868787,-463.29,0.00023387,2]
[378465822,1754875868796,-653.95,0.00023387,2]
[378465823,1754875868806,-460.0,0.00023387,2]
[378465824,1754875868815,-460.0,0.0002339,2]
[378465825,1754875868825,-467.83,0.0002339,2]
[378465826,1754875868835,-3528.01,0.00023391,2]
[378465827,1754875868845,-776.68,0.00023391,2]
[378465828,1754875868854,-460.0,0.00023395,2]
[378465829,1754875868863,-1024.3,0.00023395,2]
[378465830,1754875868873,-1355.29,0.00023395,2]
[378465831,1754875868882,-1443.99,0.00023405,2]
[378465832,1754875868892,-943.31,0.00023405,2]
[378465833,1754875868902,-756.53,0.00023405,2]
[378465834,1754875868911,-2307.20340351,0.00023409,2]
[378465835,1754875868921,-600.0,0.00023422,2]
[378465836,1754875868930,-496.734913,0.00023465,10]
[378465837,1754875868940,-496.734913,0.00023469,2]
[378465838,1754875868949,-759.0,0.00023487,2]
[378465839,1754875868959,-550.0,0.00023492,2]
[378465840,1754875868970,-1000.0,0.000235,2]
[378465841,1754875868980,-157.0,0.000235,3]
[378465842,1754875868990,-157.0,0.000235,4]
[378465843,1754875869000,-151.0,0.000235,7]
[378465844,1754875869010,-151.0,0.000235,8]
[378465845,1754875869019,-496.734913,0.000235,7]
[378465846,1754875869029,-500.0,0.00023521,2]
[378465847,1754875869040,-2000.0,0.00023582,2]
[378465848,1754875869051,-168.0,0.00023586,2]
[378465849,1754875869061,-250.0,0.00023621,2]
[378465850,1754875869072,-460.0,0.00023636,2]
[378465851,1754875869081,-460.0,0.00023644,2]
[378465852,1754875869091,-1509.74,0.00023644,2]
[378465853,1754875869101,-1576.73,0.00023644,2]
[378465854,1754875869111,-2489.12,0.00023644,2]
[378465855,1754875869122,-514.29,0.00023646,2]
[378465856,1754875869132,-460.0,0.00023646,2]
[378465857,1754875869141,-418.79,0.00023646,2]
[378465858,1754875869151,-460.0,0.00023646,2]
[378465859,1754875869161,-315.59,0.00023646,2]
[378465860,1754875869171,-460.0,0.00023646,2]
[378465861,1754875869180,-460.0,0.00023646,2]
[378465862,1754875869190,-1431.78,0.00023647,2]
[378465863,1754875869199,-1154.77,0.00023647,2]
[378465864,1754875869208,-545.53,0.00023649,2]
[378465865,1754875869226,-1411.99,0.00023649,2]
[378465866,1754875869237,-992.71,0.00023649,2]
[378465867,1754875869247,-460.0,0.0002365,2]
[378465868,1754875869257,-460.0,0.00023651,2]
[378465869,1754875869267,-217.80759689,0.0002366,2]
[378465870,1754875869276,-460.0,0.00023661,2]
[378465871,1754875869287,-463.29,0.00023661,2]
[378465872,1754875869298,-653.95,0.00023661,2]
[378465873,1754875869309,-460.0,0.00023661,2]
[378465874,1754875869320,-151.0,0.00023661,7]
[378465875,1754875869330,-600.0,0.00023661,2]
[378465876,1754875869339,-597.0,0.00023664,2]
[378465877,1754875869349,-467.83,0.00023664,2]
[378465878,1754875869358,-3528.01,0.00023665,2]
[378465879,1754875869368,-776.68,0.00023665,2]
[378465880,1754875869383,-460.0,0.00023669,2]
[378465881,1754875869392,-1024.3,0.00023669,2]
[378465882,1754875869403,-1355.29,0.00023669,2]
[378465883,1754875869413,-1443.99,0.00023679,2]
[378465884,1754875869422,-943.31,0.00023679,2]
[378465885,1754875869432,-756.53,0.00023679,2]
[378465886,1754875869441,-3000.0,0.00023688,2]
[378465887,1754875869452,-2008.65772578,0.00023713,7]
[378465888,1754875869462,-168.0,0.00023714,2]
[378465889,1754875869472,-70000.0,0.0002375,7]
[378465890,1754875869482,-151.0,0.0002375,7]
[378465891,1754875869491,-281.395946,0.0002375,7]
[378465892,1754875869501,-151.0,0.0002375,7]
[378465893,1754875869511,-151.0,0.0002375,7]
[378465894,1754875869520,-151.0,0.0002375,7]
[378465895,1754875869530,-196.495851,0.0002375,7]
[378465896,1754875869539,-196.495851,0.0002375,7]
[378465897,1754875869549,-2500.0,0.00023761,2]
[378465898,1754875869558,-2500.0,0.00023761,2]
[378465899,1754875869567,-2500.0,0.00023761,2]
[378465900,1754875869577,-177.40885409,0.00023761,2]
[378465901,1754875869586,-759.0,0.0002377,3]
[378465902,1754875869596,-3000.0,0.00023788,2]
[378465903,1754875869606,-151.0,0.0002379,7]
[378465904,1754875869616,-1540.0,0.00023791,2]
[378465905,1754875869625,-587.0,0.00023796,2]
[378465906,1754875869635,-200.0,0.000238,2]
[378465907,1754875869648,-160.0,0.000238,7]
[378465908,1754875869658,-312.16666667,0.000238,7]
[378465909,1754875869668,-215.44987349,0.000238,7]
[378465910,1754875869677,-527.86640923,0.000238,7]
[378465911,1754875869687,-461.62346162,0.000238,7]
[378465912,1754875869697,-496.734913,0.00023827,2]
[378465913,1754875869706,-496.734913,0.0002383,10]
[378465914,1754875869716,-496.734913,0.0002385,7]
[378465915,1754875869725,-151.0,0.00023873,7]
[378465916,1754875869811,-160416.25811405,0.00023884,2]
[378465917,1754875869932,-5015.98113191,0.00023884,2]
[378465918,1754875870117,20252.38884843,0.00019987,2]
[378465919,1754875870230,10783.18864945,0.00019974,2]
[378465920,1754875870243,-500.0,0.00020069,2]
[378465921,1754875870253,-500.0,0.00020069,2]
[378465922,1754875870262,-500.0,0.00020069,2]
[378465923,1754875870272,-500.0,0.00020069,2]
[378465924,1754875870281,-500.0,0.00020069,2]
[378465925,1754875870296,-500.0,0.00020069,2]
[378465926,1754875870306,-500.0,0.00020069,2]
[378465927,1754875870315,-500.0,0.00020069,2]
[378465928,1754875870324,-302.3974,0.00020069,2]
[378465929,1754875870511,160.0,0.0002,3]
[378465930,1754875871356,10000.0,0.00019987,2]
[378465931,1754875871604,3391.44398809,0.00020003,2]
[378465932,1754875916793,6183.07213461,0.00019975,2]
[378465933,1754875945534,2170.22472938,0.000199,2]
[378465937,1754875984418,20252.38884843,0.00019987,2]
[378465946,1754876150580,160.0,0.0002,3]
[378465947,1754876151023,160.0,0.0002,3]
[378465948,1754876153914,2109.45920319,0.000199,2]
[378465950,1754876229263,151.49716918,0.00019977,2]
[378465956,1754876238780,160.877825,0.00013699,2]
[378465973,1754876244955,151.0,0.0002,4]
[378465974,1754876247220,190.79724126,0.000222,69]
[378465975,1754876297068,3003.61793178,0.00019966,2]
[378465976,1754876354231,2039.14389633,0.000199,2]
[378465977,1754876454541,160.0,0.0002,3]
[378465978,1754876454971,160.0,0.0002,3]
[378465979,1754876504730,2628.16569029,0.00019964,2]
[378465980,1754876570672,151.49716917,0.00019969,2]
[378465981,1754876570721,2048.07921312,0.000199,2]
[378465982,1754876575345,77280.15247526,0.00019965,2]
[378465983,1754876576790,1019.45,0.00019955,3]
[378465984,1754876587840,509.72,0.00019955,3]
[378465985,1754876598504,254.86,0.00019955,3]
[378465986,1754876609524,764.61,0.00019955,3]
[378465988,1754876710109,2368.29851218,0.00019864,2]
[378465990,1754876779124,1975.32310025,0.000199,2]
[378465991,1754876848130,-1200.0,0.00019962,2]
[378465992,1754876848152,-300.0,0.00019962,2]
[378465993,1754876848174,-500.0,0.00019963,2]
[378465994,1754876848195,-500.0,0.00019963,2]
[378465995,1754876848216,-500.0,0.00019963,2]
[378465996,1754876848237,-500.0,0.00019963,2]
[378465997,1754876848540,-500.0,0.00019963,2]
[378465998,1754876848568,-500.0,0.00019963,2]
[378465999,1754876848588,-386.0265257,0.00019963,2]
[378466000,1754876848609,-500.0,0.00019963,2]
[378466001,1754876848630,-293.52068383,0.00019963,2]
[378466002,1754876848651,-500.0,0.00019963,2]
[378466003,1754876848673,-500.0,0.00019963,2]
[378466004,1754876848695,-500.0,0.00019963,2]
[378466005,1754876848716,-446.23189522,0.00019963,2]
[378466006,1754876848737,-500.0,0.00019963,2]
[378466007,1754876848760,-500.0,0.00019963,2]
[378466008,1754876848780,-500.0,0.00019963,2]
[378466009,1754876848804,-51.6618145,0.00019963,2]
[378466010,1754876852826,151.0,0.000197,2]
[378466011,1754876853258,151.0,0.000186,2]
[378466012,1754876853594,151.0,0.000175,2]
[378466013,1754876853963,151.0,0.000164,2]
[378466014,1754876854276,151.0,0.000154,2]
[378466016,1754876906612,568.42099184,0.00019864,2]
[378466017,1754876915335,2072.26119814,0.00019863,2]
[378466018,1754876924341,4674.64634545,0.00019932,2]
[378466019,1754876976925,4391.91095497,0.00018963,2]
[378466020,1754876976948,20508.08904503,0.00018963,2]
[378466022,1754876990400,1957.20514393,0.000199,2]
[378466085,1754877032703,-378.64076985,0.00019961,2]
[378466455,1754877038465,-500.0,0.00019961,2]
[378466457,1754877038477,-500.0,0.00019961,2]
[378466459,1754877038487,-500.0,0.00019961,2]
[378466461,1754877038496,-500.0,0.00019961,2]
[378466463,1754877038505,-500.0,0.00019961,2]
[378466465,1754877038514,-343.13554286,0.00019961,2]
[378466467,1754877038524,-500.0,0.00019961,2]
[378466469,1754877038534,-500.0,0.00019961,2]
[378466471,1754877038543,-500.0,0.00019961,2]
[378466473,1754877038552,-500.0,0.00019961,2]
[378466475,1754877038562,-500.0,0.00019961,2]
[378466477,1754877038571,-500.0,0.00019961,2]
[378466479,1754877038581,-441.93692681,0.00019961,2]
[378466481,1754877038591,-451.62382806,0.00019961,2]
[378466483,1754877038600,-500.0,0.00019961,2]
[378466485,1754877038610,-500.0,0.00019961,2]
[378466487,1754877038620,-500.0,0.00019961,2]
[378466489,1754877038630,-500.0,0.00019961,2]
[378466491,1754877038639,-500.0,0.00019961,2]
[378466493,1754877038649,-500.0,0.00019961,2]
[378466495,1754877038658,-500.0,0.00019961,2]
[378466498,1754877038668,-500.0,0.00019961,2]
[378466500,1754877038677,-500.0,0.00019961,2]
[378466502,1754877038686,-500.0,0.00019961,2]
[378466504,1754877038696,-500.0,0.00019961,2]
[378466506,1754877038705,-500.0,0.00019961,2]
[378466508,1754877038714,-500.0,0.00019961,2]
[378466528,1754877038932,-500.0,0.00019961,2]
[378466530,1754877038942,-500.0,0.00019961,2]
[378466532,1754877038952,-500.0,0.00019961,2]
[378466534,1754877038962,-500.0,0.00019961,2]
[378466536,1754877038972,-500.0,0.00019961,2]
[378466538,1754877038981,-490.3735643,0.00019961,2]
[378466540,1754877038991,-500.0,0.00019961,2]
[378466542,1754877039000,-500.0,0.00019961,2]
[378466544,1754877039010,-500.0,0.00019961,2]
[378466546,1754877039020,-500.0,0.00019961,2]
[378466548,1754877039029,-500.0,0.00019961,2]
[378466550,1754877039038,-500.0,0.00019961,2]
[378466552,1754877039048,-500.0,0.00019961,2]
[378466554,1754877039057,-500.0,0.00019961,2]
[378466556,1754877039066,-500.0,0.00019961,2]
[378466558,1754877039076,-500.0,0.00019961,2]
[378466560,1754877039085,-121.35923015,0.00019961,2]
[378466562,1754877039095,-3471.53935172,0.00019961,2]
[378466564,1754877039104,-3471.53935172,0.00019961,2]
[378466566,1754877039114,-3471.53935172,0.00019961,2]
[378466568,1754877039123,-3471.53935172,0.00019961,2]
[378466570,1754877039132,-43.94577511,0.00019961,2]
[378466572,1754877039145,-456.05422489,0.00019961,2]
[378466574,1754877039154,-3471.53935172,0.00019961,2]
[378466576,1754877039163,-3471.53935172,0.00019961,2]
[378466578,1754877039173,-3471.53935172,0.00019961,2]
[378466580,1754877039182,-500.0,0.00019961,2]
[378466582,1754877039191,-3471.53935172,0.00019961,2]
[378466584,1754877039200,-642.9739585,0.00019961,2]
[378466586,1754877039209,-3471.53935172,0.00019961,2]
[378466588,1754877039218,-3471.53935172,0.00019961,2]
[378466590,1754877039227,-3471.53935172,0.00019961,2]
[378466593,1754877039237,-3471.53935172,0.00019961,2]
[378466595,1754877039246,-257.70753942,0.00019961,2]
[378466597,1754877039258,-398.73,0.00019961,2]
[378466599,1754877039269,-2815.1018123,0.00019961,2]
[378466601,1754877039279,-3471.53935172,0.00019961,2]
[378466603,1754877039288,-759.5967226,0.00019961,2]
[378466605,1754877039299,-530.64083125,0.00019961,2]
[378466608,1754877039319,-2181.30179787,0.00019961,2]
[378466610,1754877039329,-3471.53935172,0.00019961,2]
[378466612,1754877039338,-2526.22744712,0.00019961,2]
[378466615,1754877039349,-682.81930476,0.00019961,2]
[378466617,1754877039360,-262.49259984,0.00019961,2]
[378466619,1754877039370,-239.67130143,0.00019961,2]
[378466621,1754877039381,-2714.73805655,0.00019961,2]
[378466624,1754877039395,-517.12999374,0.00019961,2]
[378466625,1754877039404,-300.0,0.00019961,2]
[378466628,1754877039414,-300.0,0.00019961,2]
[378466629,1754877039423,-1200.0,0.00019961,2]
[378466631,1754877039433,-464.06248884,0.00019961,2]
[378466633,1754877039443,-460.0,0.00019961,2]
[378466635,1754877039452,-460.0,0.00019961,2]
[378466637,1754877039461,-464.10385929,0.00019961,2]
[378466639,1754877039470,-300.0,0.00019962,2]
[378466641,1754877039480,-486.24246107,0.00019962,2]
[378466642,1754877039489,-460.0,0.00019962,2]
[378466643,1754877039498,-728.57,0.00019962,2]
[378466644,1754877039507,-2126.76516452,0.00019963,2]
[378466645,1754877039528,-461.23033013,0.00019961,2]
[378466646,1754877039538,-3217.58453774,0.00019963,2]
[378466647,1754877039549,-44655.65029774,0.00019963,2]
[378466648,1754877039558,-460.0,0.00019963,2]
[378466649,1754877039568,-462.03557568,0.00019963,2]
[378466650,1754877039577,-500.0,0.00019964,2]
[378466651,1754877039587,-464.98555228,0.00019964,2]
[378466652,1754877039596,-460.0,0.00019964,2]
[378466653,1754877039606,-159.69276201,0.00019964,2]
[378466654,1754877039615,-460.0,0.00019964,2]
[378466655,1754877039624,-351.19989144,0.00019964,2]
[378466656,1754877039633,-462.54838981,0.00019964,2]
[378466657,1754877039643,-468.87040517,0.00019964,2]
[378466658,1754877039652,-534.08289368,0.00019964,2]
[378466659,1754877039661,-464.92630249,0.00019964,2]
[378466660,1754877039670,-460.0,0.00019964,2]
[378466661,1754877039680,-460.0,0.00019964,2]
[378466662,1754877039688,-467.9852193,0.00019964,2]
[378466663,1754877039697,-461.24309115,0.00019964,2]
[378466664,1754877039707,-462.57621199,0.00019964,2]
[378466665,1754877039716,-469.31344474,0.00019964,2]
[378466666,1754877039726,-604.89,0.00019964,2]
[378466667,1754877039735,-468.70878861,0.00019964,2]
[378466669,1754877039745,-460.0,0.00019964,2]
[378466671,1754877039758,-462.65048453,0.00019964,2]
[378466673,1754877039768,-472.43371714,0.00019964,2]
[378466675,1754877039777,-463.46040381,0.00019964,2]
[378466677,1754877039786,-467.458671,0.00019964,2]
[378466679,1754877039795,-460.0,0.00019964,2]
[378466682,1754877039805,-460.0,0.00019964,2]
[378466684,1754877039814,-472.87131645,0.00019964,2]
[378466686,1754877039824,-589.41202551,0.00019964,2]
[378466689,1754877039833,-1985.87,0.00019964,2]
[378466691,1754877039842,-460.0,0.00019964,2]
[378466693,1754877039852,-461.70400869,0.00019964,2]
[378466695,1754877039861,-238.83864667,0.00019964,2]
[378466697,1754877039871,-460.0,0.00019964,2]
[378466699,1754877039880,-460.0,0.00019964,2]
[378466700,1754877039890,-460.0,0.00019964,2]
[378466703,1754877039900,-467.0752254,0.00019964,2]
[378466705,1754877039909,-460.0,0.00019964,2]
[378466706,1754877039919,-2094.13,0.00019964,2]
[378466708,1754877039929,-460.0,0.00019964,2]
[378466710,1754877039938,-463.13613924,0.00019964,2]
[378466713,1754877039948,-464.82225368,0.00019964,2]
[378466715,1754877039957,-460.0,0.00019964,2]
[378466717,1754877039967,-465.08542081,0.00019964,2]
[378466719,1754877039976,-460.0,0.00019964,2]
[378466721,1754877039986,-460.0,0.00019964,2]
[378466723,1754877039995,-460.0,0.00019964,2]
[378466725,1754877040005,-460.0,0.00019964,2]
[378466727,1754877040014,-470.77216077,0.00019964,2]
[378466729,1754877040023,-460.0,0.00019964,2]
[378466731,1754877040032,-460.0,0.00019964,2]
[378466733,1754877040042,-462.4438088,0.00019964,2]
[378466735,1754877040051,-461.85152626,0.00019964,2]
[378466737,1754877040061,-206191.44405264,0.00019965,2]
[378466739,1754877040070,-187.54646658,0.0001999,2]
[378466741,1754877040080,-1009.31570869,0.00019999,2]
[378466743,1754877040090,-568.42099184,0.00020032,2]
[378466745,1754877040099,-2038.89,0.00020059,3]
[378466747,1754877040109,-252.229,0.00020064,2]
[378466749,1754877040118,-460.0,0.00020064,2]